bitfinex/quotes_SOLUSD_20250130
["timestamp","ask_amount","ask_price","bid_price","bid_amount"]
[1738259861037,0.063,241.02,240.97,12.43019833]
[1738259861457,4.212,241.02,240.97,12.43019833]
[1738259862034,0.063,241.02,240.97,12.43019833]
[1738259864860,0.063,241.02,240.95,149.43019833]
[1738259865149,0.063,241.02,240.96,0.62244896]
[1738259866336,0.063,241.02,240.97,12.43019833]
[1738259870166,0.063,241.02,240.9,150.41184853]
[1738259870167,0.063,241.02,240.99,12.43019833]
[1738259870365,0.063,241.02,240.9,150.41184853]
[1738259870366,0.063,241.02,241.01,12.43019833]
[1738259870862,0.063,241.02,241.01,7.93644803]
[1738259872767,0.063,241.02,241.0,12.40234371]
[1738259876356,0.063,241.02,240.98,13.02470865]
[1738259877366,0.063,241.02,240.98,12.40234371]
[1738259878776,0.063,241.02,240.97,137.063]
[1738259878968,4.8349487,241.02,240.97,137.063]
[1738259879162,4.8349487,241.02,240.97,0.063]
[1738259879558,0.6859487,241.02,240.97,0.063]
[1738259880372,0.063,241.02,240.97,0.063]
[1738259880874,12.40234371,240.99,240.97,0.063]
[1738259881054,0.6229487,240.98,240.97,0.063]
[1738259881452,12.40234371,240.99,240.97,0.063]
[1738259881665,0.063,241.02,240.98,12.40234371]
[1738259883565,0.063,241.02,240.97,0.063]
[1738259883566,0.063,241.02,241.0,12.40234371]
[1738259886581,0.063,241.02,240.98,12.40234371]
[1738259886784,0.063,241.02,240.97,0.063]
[1738259886785,0.063,241.02,241.0,12.40234371]
[1738259887381,0.063,241.02,240.97,0.685349]
[1738259887563,0.063,241.02,240.97,0.063]
[1738259888085,4.2121,241.02,240.97,0.063]
[1738259888279,0.6229487,241.01,240.97,0.063]
[1738259888786,13.02529241,241.01,240.97,0.063]
[1738259889365,12.40234371,240.99,240.97,0.063]
[1738259889569,0.6229487,240.98,240.97,0.063]
[1738259890585,4.7726487,240.98,240.97,0.063]
[1738259891166,12.6981487,240.98,240.97,0.063]
[1738259892692,6.4250487,240.98,240.97,0.063]
[1738259893078,2.2753487,240.98,240.97,0.063]
[1738259893390,1.6524,240.98,240.97,0.063]
[1738259893572,0.6229487,240.99,240.97,0.063]
[1738259893773,0.6229487,241.01,240.97,0.063]
[1738259894179,0.063,241.02,240.98,12.40234371]
[1738259896098,4.212,241.02,240.97,0.063]
[1738259896269,0.6229487,241.01,240.97,0.063]
[1738259897094,13.02529241,241.01,240.97,0.063]
[1738259897498,12.40234371,240.99,240.97,0.063]
[1738259897695,0.6229487,240.98,240.97,0.063]
[1738259898202,4.7726487,240.98,240.97,0.063]
[1738259902092,12.40234371,240.99,240.97,0.063]
[1738259902408,36.55154371,241.01,240.97,0.063]
[1738259902610,0.6229487,241.0,240.97,0.063]
[1738259903236,4.7724487,241.0,240.97,0.063]
[1738259904030,4.1495,241.0,240.97,0.063]
[1738259904904,0.6229487,240.99,240.97,0.063]
[1738259906519,4.7724487,241.0,240.97,0.063]
[1738259907211,12.43918118,240.99,240.97,0.063]
[1738259907522,0.6229487,240.98,240.97,0.063]
[1738259908905,4.1497,240.98,240.97,0.063]
[1738259913491,0.03,240.99,240.97,0.063]
[1738259922028,0.03,240.99,240.98,7.94075935]
[1738259922328,0.03,240.99,240.98,8.56312174]
[1738259923439,0.03,240.99,240.98,7.94075935]
[1738259923615,0.03,240.99,240.97,0.063]
[1738259924009,0.03,240.99,240.98,7.94075935]
[1738259924933,0.03,240.99,240.98,8.56310146]
[1738259925137,0.03,240.99,240.98,145.56310146]
[1738259925438,0.03,240.99,240.98,144.94075935]
[1738259925641,0.03,240.99,240.98,21.35260788]
[1738259925802,0.03,240.99,240.98,21.97488745]
[1738259927110,0.03,240.99,240.98,8.56303892]
[1738259929646,0.063,241.02,241.0,95.791978]
[1738259929944,0.063,241.02,241.01,0.62229082]
[1738259930733,0.063,241.02,241.01,137.62229082]
[1738259930938,0.063,241.02,241.01,150.41184853]
[1738259932064,0.063,241.02,241.01,137.0]
[1738259933939,0.063,241.02,241.0,95.791978]
[1738259937355,12.15275935,241.02,241.0,95.791978]
[1738259940668,0.6229487,241.01,241.0,95.791978]
[1738259942587,12.77570805,241.02,241.0,95.791978]
[1738259942755,12.15275935,241.02,241.0,95.791978]
[1738259943660,0.063,241.02,241.0,95.791978]
[1738259946963,4.212,241.02,241.0,95.791978]
[1738259947480,0.063,241.02,241.0,95.791978]
[1738259948975,12.77580805,241.02,241.0,95.791978]
[1738259949481,12.15285935,241.02,241.0,95.791978]
[1738259949683,4.2121,241.02,241.0,95.791978]
[1738259949994,0.063,241.02,241.0,95.791978]
[1738259953565,0.063,241.02,241.01,0.62233227]
[1738259954171,0.063,241.02,241.01,137.62233227]
[1738259954378,0.063,241.02,241.01,137.0]
[1738259956871,0.063,241.02,241.01,150.41184853]
[1738259957066,0.063,241.02,241.01,95.71184853]
[1738259957571,0.063,241.02,241.01,232.71184853]
[1738259966107,7.94075935,241.17,241.13,1.0]
[1738259967116,4.1466,241.16,241.13,1.0]
[1738259968280,7.94075935,241.15,241.08,1.0]
[1738259968480,7.94075935,241.12,241.08,1.0]
[1738259968704,4.1471,241.13,241.08,2.0]
[1738259968908,4.1471,241.13,241.1,1.0]
[1738259969304,4.1471,241.13,241.1,2.0]
[1738259970307,4.1471,241.13,241.12,1.0]
[1738259971120,4.1467,241.15,241.12,1.0]
[1738259973019,4.1466,241.16,241.13,1.0]
[1738259973225,4.1466,241.16,241.13,2.0]
[1738259973391,4.1466,241.16,241.15,1.0]
[1738259974119,1.502,241.23,241.17,2.0]
[1738259974418,5.6474,241.23,241.19,2.0]
[1738259974626,7.94075935,241.28,241.21,1.0]
[1738259974795,7.94075935,241.28,241.23,1.0]
[1738259974997,7.94075935,241.28,241.23,2.0]
[1738259975185,4.1447,241.27,241.23,2.0]
[1738259975385,4.1447,241.27,241.23,1.0]
[1738259976028,4.1447,241.27,241.21,1.0]
[1738259976801,7.94075935,241.26,241.19,139.0]
[1738259977121,10.3611,241.29,241.19,139.0]
[1738259977122,4.1454,241.23,241.22,1.0]
[1738259977411,4.1448,241.27,241.25,1.0]
[1738259977613,1.63356419,241.36,241.3,1.0]
[1738259977813,0.0901449,241.37,241.36,2.0]
[1738259977991,0.0901449,241.37,241.36,22.62137046]
[1738259978190,0.0901449,241.37,241.36,173.03321899]
[1738259978392,0.0901449,241.37,241.36,172.41184853]
[1738259979813,0.0901449,241.37,241.36,180.35260788]
[1738259980725,0.0901449,241.37,241.36,184.77375402]
[1738259981195,4.1415,241.46,241.43,1.0]
[1738259981402,6.46336777,241.47,241.45,2.0]
[1738259981797,0.09054395,241.46,241.45,2.0]
[1738259982830,0.09054395,241.46,241.43,1.0]
[1738259983305,0.09054395,241.46,241.43,2.0]
[1738259984032,4.1416,241.45,241.43,2.0]
[1738259984335,4.1416,241.45,241.43,1.0]
[1738259984695,4.1416,241.45,241.43,2.0]
[1738259985727,12.36190549,241.44,241.37,1.0]
[1738259985898,12.36190549,241.38,241.33,2.0]
[1738259986105,12.36190549,241.36,241.33,2.0]
[1738259986623,12.36190549,241.36,241.33,1.0]
[1738259987524,12.36190549,241.36,241.31,1.0]
[1738259987713,12.36190549,241.36,241.31,2.0]
[1738259988099,4.1433,241.35,241.31,2.0]
[1738259991405,4.1433,241.35,241.33,1.0]
[1738259991906,0.03,241.36,241.33,2.0]
[1738259992122,4.1731,241.36,241.33,2.0]
[1738259992425,4.1731,241.36,241.3,12.98343993]
[1738259992426,4.1731,241.36,241.31,2.0]
[1738259992620,16.53500549,241.36,241.31,2.0]
[1738259992823,20.0,241.33,241.31,2.0]
[1738259993010,12.36190549,241.32,241.27,0.063]
[1738259993212,12.36190549,241.29,241.27,0.063]
[1738259993411,4.1445,241.28,241.27,0.063]
[1738259994410,4.1438,241.32,241.29,1.0]
[1738260000831,12.36190549,241.31,241.29,1.0]
[1738260001129,12.36190549,241.31,241.28,1.0]
[1738260001540,12.36190549,241.31,241.28,2.0]
[1738260002033,12.36190549,241.33,241.28,2.0]
[1738260002538,7.92124435,241.33,241.28,2.0]
[1738260002737,7.92124435,241.33,241.3,2.0]
[1738260002949,12.06454435,241.35,241.3,2.0]
[1738260003139,12.06454435,241.35,241.32,1.0]
[1738260003948,4.1433,241.35,241.32,1.0]
[1738260004559,4.1433,241.35,241.34,1.0]
[1738260005417,0.03,241.36,241.34,2.0]
[1738260005718,0.03,241.36,241.34,9.92124435]
[1738260006645,0.03,241.36,241.35,12.98813935]
[1738260007359,0.03,241.36,241.35,12.36669834]
[1738260007552,0.03,241.36,241.34,14.98811163]
[1738260008060,0.03,241.36,241.34,2.62141329]
[1738260008243,0.03,241.36,241.34,2.0]
[1738260008438,12.39669834,241.36,241.32,2.0]
[1738260008851,0.03,241.36,241.35,1.0]
[1738260009154,0.03,241.36,241.34,1.0]
[1738260009350,16.50999834,241.35,241.32,1.0]
[1738260009560,12.36669834,241.34,241.3,138.0]
[1738260009854,12.36669834,241.34,241.3,139.0]
[1738260010057,12.36669834,241.34,241.3,2.0]
[1738260010256,12.36669834,241.34,241.3,1.0]
[1738260010469,12.36669834,241.34,241.28,1.0]
[1738260010470,12.36669834,241.33,241.28,2.0]
[1738260010765,12.36669834,241.32,241.3,1.0]
[1738260010967,12.36669834,241.33,241.3,1.0]
[1738260011257,14.5017,241.35,241.32,1.0]
[1738260011466,4.1433,241.35,241.32,2.0]
[1738260012766,4.1433,241.35,241.32,1.0]
[1738260013061,12.36669834,241.34,241.28,2.0]
[1738260013362,12.36669834,241.32,241.27,0.063]
[1738260013540,12.36669834,241.32,241.29,1.0]
[1738260013738,12.36669834,241.32,241.28,1.0]
[1738260014159,12.36669834,241.32,241.27,2.063]
[1738260014542,4.144,241.31,241.27,2.063]
[1738260015159,4.144,241.31,241.29,2.0]
[1738260015365,4.1437,241.33,241.31,2.0]
[1738260015662,0.03,241.35,241.34,1.0]
[1738260015968,0.03,241.35,241.34,13.98820233]
[1738260016466,0.03,241.35,241.34,13.36669834]
[1738260016860,0.03,241.35,241.34,1.0]
[1738260017949,0.03,241.35,241.34,13.36669834]
[1738260018143,0.03,241.35,241.34,1.0]
[1738260018543,0.03,241.35,241.34,13.36669834]
[1738260020373,0.03,241.35,241.34,13.98813013]
[1738260020870,0.03,241.35,241.34,155.13163013]
[1738260021071,0.03,241.35,241.34,154.51019834]
[1738260021573,0.03,241.35,241.34,150.36669834]
[1738260023165,0.03,241.35,241.34,1.0]
[1738260025174,0.03,241.35,241.33,1.0]
[1738260026674,0.03,241.35,241.34,1.0]
[1738260029388,0.03,241.35,241.33,1.0]
[1738260029604,0.03,241.35,241.32,1.0]
[1738260030063,12.39669834,241.35,241.3,137.0]
[1738260030769,7.92163095,241.32,241.3,137.0]
[1738260030968,4.144,241.31,241.3,137.0]
[1738260031470,4.144,241.31,241.27,1.063]
[1738260031669,7.92163095,241.3,241.27,1.063]
[1738260032678,12.3798537,241.3,241.27,1.063]
[1738260033004,12.3798537,241.28,241.27,0.063]
[1738260034273,12.3798537,241.28,241.17,12.3798537]
[1738260034274,12.3798537,241.25,241.18,138.0]
[1738260034586,12.3798537,241.25,241.18,1.0]
[1738260034891,12.3798537,241.21,241.16,1.0]
[1738260035074,4.1459,241.2,241.17,1.0]
[1738260035281,4.1459,241.2,241.16,1.0]
[1738260036177,4.1459,241.2,241.17,1.0]
[1738260036792,12.3798537,241.23,241.19,1.0]
[1738260036997,1.5259,241.27,241.2,1.0]
[1738260036998,20.0,241.24,241.2,1.0]
[1738260037499,4.1449,241.26,241.21,1.0]
[1738260038293,12.3798537,241.25,241.2,1.0]
[1738260038802,12.3798537,241.23,241.18,1.0]
[1738260038981,4.1459,241.2,241.17,0.063]
[1738260039297,12.3798537,241.19,241.17,0.063]
[1738260040179,1.5259,241.27,241.18,1.0]
[1738260040180,12.3798537,241.21,241.18,1.0]
[1738260042098,16.5257537,241.21,241.18,1.0]
[1738260042303,16.5257537,241.21,241.17,0.063]
[1738260043005,16.5257537,241.21,241.17,1.063]
[1738260044184,16.5257537,241.21,241.17,0.063]
[1738260044604,16.5257537,241.21,241.17,1.063]
[1738260044793,16.5257537,241.21,241.17,0.063]
[1738260046003,12.3798537,241.19,241.17,0.063]
[1738260046300,4.1462,241.18,241.17,0.063]
[1738260047375,17.55804853,241.18,241.12,0.063]
[1738260047583,12.3798537,241.13,241.12,0.063]
[1738260047886,12.3798537,241.13,241.03,12.3798537]
[1738260047887,12.3798537,241.13,241.03,2.0]
[1738260048099,12.3798537,241.06,241.03,1.0]
[1738260048301,16.5281537,241.06,241.02,0.063]
[1738260048505,12.3798537,241.05,241.02,0.063]
[1738260048821,16.5281537,241.06,241.02,0.063]
[1738260050412,16.5281537,241.06,241.02,1.063]
[1738260051414,16.5281537,241.06,241.02,0.063]
[1738260052612,12.3798537,241.04,241.02,0.063]
[1738260054897,4.1488,241.03,241.02,0.063]
[1738260059409,17.56064853,241.03,241.02,0.0001]
[1738260060817,25.50463387,241.03,241.02,0.0001]
[1738260061112,12.09278534,241.03,241.02,0.0001]
[1738260062694,49.97428841,241.03,241.02,0.0001]
[1738260063812,49.97428841,241.03,240.99,0.0001]
[1738260064010,49.97428841,241.03,240.92,0.063]
[1738260064011,13.41184853,240.99,240.92,0.063]
[1738260064321,20.0,240.95,240.92,0.063]
[1738260064494,12.41363988,240.94,240.92,0.063]
[1738260066500,4.1505,240.93,240.92,0.063]
[1738260067523,16.56413988,240.93,240.92,0.063]
[1738260070707,12.41363988,240.94,240.92,0.063]
[1738260070919,16.56403988,240.94,240.92,0.063]
[1738260072108,16.56413988,240.93,240.92,0.063]
[1738260078222,16.56413988,240.93,240.87,0.063]
[1738260078223,20.0,240.9,240.87,0.063]
[1738260078423,12.41363988,240.88,240.87,0.063]
[1738260078803,25.82548841,240.88,240.87,0.0001]
[1738260079007,20.0,240.84,240.78,0.063]
[1738260079217,12.41363988,240.79,240.78,0.063]
[1738260080315,12.41363988,240.79,240.78,1.063]
[1738260080316,4.1529,240.79,240.78,1.063]
[1738260080502,16.56633988,240.81,240.78,1.063]
[1738260080924,12.41363988,240.8,240.78,0.063]
[1738260082533,16.56653988,240.8,240.78,0.063]
[1738260082931,64.31223901,240.92,240.78,2.063]
[1738260082932,12.41363988,240.82,240.78,2.063]
[1738260083133,12.41363988,240.87,240.82,1.0]
[1738260083433,16.56453988,240.91,240.85,1.0]
[1738260083611,4.1509,240.91,240.87,1.0]
[1738260083812,4.1509,240.91,240.87,2.0]
[1738260084013,4.1506,240.93,240.89,2.0]
[1738260085635,4.1506,240.93,240.89,1.0]
[1738260085937,4.1506,240.93,240.89,2.0]
[1738260086337,4.1503,240.95,240.93,1.0]
[1738260086635,1.5459,241.02,240.96,1.0]
[1738260086636,4.149,241.02,240.96,1.0]
[1738260086931,4.149,241.02,240.99,1.0]
[1738260087537,4.149,241.02,240.98,1.0]
[1738260089346,12.41363988,241.01,240.95,1.0]
[1738260089535,20.0,240.89,240.88,0.063]
[1738260089738,32.41363988,240.89,240.88,0.063]
[1738260090456,32.41363988,240.89,240.88,0.0001]
[1738260090930,36.56483988,240.89,240.88,0.0001]
[1738260092843,49.97668841,240.89,240.88,0.0001]
[1738260094344,79.97668841,240.89,240.78,0.063]
[1738260094542,12.41363988,240.79,240.78,0.063]
[1738260094921,16.56653988,240.79,240.78,0.063]
[1738260096749,29.97838841,240.79,240.78,0.063]
[1738260097930,29.97838841,240.79,240.77,0.063]
[1738260098648,13.41184853,240.78,240.77,0.0001]
[1738260099740,25.82548841,240.78,240.77,0.0001]
[1738260099946,12.41363988,240.78,240.77,0.0001]
[1738260100743,12.41363988,240.81,240.77,0.0001]
[1738260101070,0.03,240.89,240.87,1.0]
[1738260101844,0.03,240.89,240.88,12.41363988]
[1738260102637,0.03,240.89,240.87,1.0]
[1738260103250,0.03,240.89,240.85,1.0]
[1738260104162,0.03,240.89,240.87,1.0]
[1738260104937,12.41363988,240.88,240.8,7.3817]
[1738260105158,12.41363988,240.86,240.8,7.3817]
[1738260106454,4.1519,240.85,240.84,1.0]
[1738260107258,4.1517,240.87,240.84,1.0]
[1738260107647,20.03,240.89,240.84,1.0]
[1738260107848,20.03,240.89,240.83,12.41363988]
[1738260107849,24.1813,240.89,240.87,1.0]
[1738260108447,0.03,240.89,240.87,1.0]
[1738260109936,0.03,240.89,240.88,19.86714441]
[1738260110471,0.03,240.89,240.85,1.0]
[1738260110649,0.03,240.89,240.86,1.0]
[1738260111773,0.03,240.89,240.88,1.0]
[1738260112472,0.03,240.89,240.86,1.0]
[1738260113955,0.03,240.89,240.88,1.0]
[1738260117078,0.03,240.89,240.86,1.0]
[1738260118081,0.03,240.89,240.88,1.0]
[1738260123677,19.89714441,240.89,240.81,1.0]
[1738260123870,19.86714441,240.85,240.78,1.0]
[1738260124060,19.86714441,240.85,240.81,1.0]
[1738260124702,19.86714441,240.87,240.79,1.0]
[1738260124860,0.03,240.89,240.79,1.0]
[1738260124861,19.86714441,240.83,240.79,1.0]
[1738260125059,19.86714441,240.83,240.77,0.0001]
[1738260125266,19.86714441,240.81,240.77,0.0001]
[1738260125551,4.1531,240.78,240.77,0.0001]
[1738260127291,17.56494853,240.78,240.77,0.0001]
[1738260128760,30.00234029,240.78,240.77,0.0001]
[1738260129481,20.0,240.75,240.74,0.0001]
[1738260129673,32.43739176,240.75,240.74,0.0001]
[1738260129876,45.84924029,240.75,240.68,1.0]
[1738260130183,12.43739176,240.71,240.68,1.0]
[1738260130766,20.0,240.71,240.7,1.0]
[1738260130960,20.0,240.71,240.68,1.0]
[1738260131275,20.0,240.7,240.68,1.0]
[1738260132266,4.1547,240.69,240.68,1.0]
[1738260132763,4.1547,240.69,240.66,0.063]
[1738260132971,4.1547,240.69,240.66,1.063]
[1738260133365,4.1547,240.69,240.68,1.0]
[1738260134358,20.0,240.69,240.68,1.0]
[1738260135587,24.1547,240.69,240.68,1.0]
[1738260136083,4.1547,240.69,240.68,1.0]
[1738260136585,4.1545,240.7,240.68,1.0]
[1738260136886,4.1545,240.7,240.66,1.063]
[1738260137269,4.1545,240.7,240.68,1.0]
[1738260139395,12.43739176,240.7,240.66,1.063]
[1738260139779,12.43739176,240.7,240.68,1.0]
[1738260139973,12.43739176,240.71,240.68,1.0]
[1738260141288,12.43739176,240.71,240.66,1.063]
[1738260141487,4.1545,240.7,240.66,1.063]
[1738260141787,4.1545,240.7,240.68,1.0]
[1738260143510,4.154,240.73,240.72,1.0]
[1738260144780,4.1536,240.75,240.72,1.0]
[1738260144992,14.5378,240.75,240.7,1.0]
[1738260145201,12.43739176,240.74,240.7,1.0]
[1738260145371,12.43739176,240.74,240.72,1.0]
[1738260146097,12.43739176,240.76,240.72,1.0]
[1738260146797,26.97339176,240.78,240.72,1.0]
[1738260147596,26.97339176,240.78,240.7,1.0]
[1738260147911,12.43739176,240.74,240.68,1.0]
[1738260148089,10.3829,240.78,240.68,1.0]
[1738260148090,12.43739176,240.72,240.68,1.0]
[1738260148283,12.43739176,240.72,240.68,1.063]
[1738260148478,20.0,240.73,240.72,1.0]
[1738260148683,0.03,240.74,240.72,1.0]
[1738260155592,0.03,240.74,240.7,1.0]
[1738260155799,0.03,240.74,240.73,1.0]
[1738260157510,0.03,240.74,240.71,1.0]
[1738260158721,0.03,240.74,240.73,1.0]
[1738260161438,0.03,240.74,240.72,0.063]
[1738260162015,0.03,240.74,240.72,1.063]
[1738260164030,7.98895751,240.74,240.72,0.063]
[1738260166343,4.154,240.73,240.72,0.063]
[1738260168939,4.154,240.73,240.72,1.063]
[1738260169743,0.03,240.74,240.72,1.063]
[1738260169950,0.03,240.74,240.73,8.58201752]
[1738260170731,0.03,240.74,240.73,241.29386605]
[1738260170944,0.03,240.74,240.73,240.67080604]
[1738260175128,0.03,240.74,240.73,232.71184853]
[1738260176633,0.03,240.74,240.73,236.86584853]
[1738260177151,10.3773,240.91,240.88,1.0]
[1738260177348,9.51325751,240.94,240.88,1.0]
[1738260177536,4.1508,240.92,240.88,1.0]
[1738260177726,4.1508,240.92,240.88,1.62263588]
[1738260178130,4.1502,240.95,240.88,1.62262997]
[1738260178647,4.1502,240.95,240.88,14.03710262]
[1738260180844,12.41447265,240.93,240.88,1.0]
[1738260181651,12.41447265,240.91,240.88,1.0]
[1738260182047,12.41447265,240.93,240.88,1.0]
[1738260182251,26.94017265,240.95,240.88,1.0]
[1738260184155,12.41447265,240.93,240.88,1.0]
[1738260184340,12.41447265,240.91,240.88,1.0]
[1738260185254,4.1511,240.9,240.88,1.0]
[1738260186460,20.89188597,240.96,240.88,237.86324853]
[1738260186660,0.03,240.99,240.98,1.0]
[1738260186962,0.03,240.99,240.98,13.41447265]
[1738260187336,0.03,240.99,240.98,1.0]
[1738260187738,0.03,240.99,240.98,13.41447265]
[1738260188340,0.03,240.99,240.98,109.12632118]
[1738260188538,0.03,240.99,240.98,246.12632118]
[1738260188955,0.03,241.03,240.99,17.56134853]
[1738260189150,0.03,241.03,241.02,26.82632118]
[1738260189342,0.03,241.03,241.02,165.44841532]
[1738260189550,0.03,241.12,241.11,13.41447265]
[1738260190263,0.03,241.12,241.11,1.0]
[1738260192043,0.03,241.12,241.11,13.41447265]
[1738260192652,0.03,241.12,241.11,1.0]
[1738260193053,0.03,241.12,241.09,1.0]
[1738260194059,4.1773,241.12,241.11,1.0]
[1738260194964,4.1773,241.12,241.09,1.0]
[1738260195964,0.03,241.12,241.11,1.0]
[1738260197271,0.03,241.12,241.11,13.41447265]
[1738260199594,0.03,241.12,241.11,26.82632118]
[1738260200062,0.03,241.12,241.11,27.44825935]
[1738260202478,0.03,241.12,241.11,14.03641082]
[1738260202784,0.03,241.12,241.11,13.41447265]
[1738260204946,0.03,241.12,241.11,1.0]
[1738260206788,0.03,241.12,241.04,0.62217226]
[1738260207084,12.41447265,241.1,241.04,0.62217226]
[1738260207292,12.44447265,241.12,241.04,0.62217226]
[1738260207659,12.41447265,241.1,241.03,12.41447265]
[1738260207979,12.41447265,241.1,241.01,12.41447265]
[1738260208179,4.1478,241.09,241.02,0.6222461]
[1738260208575,4.1478,241.09,241.03,0.063]
[1738260209376,4.1478,241.09,241.03,12.47747265]
[1738260209683,4.1478,241.09,241.05,12.41447265]
[1738260209871,4.1478,241.09,241.06,0.62216108]
[1738260210259,0.03,241.12,241.06,0.62216108]
[1738260211584,0.03,241.12,241.09,12.41447265]
[1738260211787,0.03,241.12,241.1,0.62207075]
[1738260212188,0.03,241.12,241.06,82.3]
[1738260212385,0.03,241.12,241.07,13.03664608]
[1738260213794,0.03,241.12,241.06,82.3]
[1738260213795,12.44447265,241.12,241.06,82.3]
[1738260214094,12.41447265,241.1,241.06,82.3]
[1738260215385,4.1478,241.09,241.06,82.3]
[1738260216403,4.1478,241.09,241.03,149.47747265]
[1738260216601,4.1478,241.09,241.03,12.47747265]
[1738260216914,12.41447265,241.06,241.03,0.063]
[1738260217589,4.1485,241.05,241.03,0.063]
[1738260219463,14.5173,241.09,241.03,0.063]
[1738260219666,14.5173,241.09,241.03,0.68525269]
[1738260220398,4.1478,241.09,241.03,0.68525269]
[1738260220895,4.1478,241.09,241.04,12.41447265]
[1738260221693,4.1474,241.11,241.04,12.41447265]
[1738260223009,12.41447265,241.1,241.03,0.063]
[1738260223870,0.03,241.12,241.03,0.063]
[1738260223871,12.41447265,241.08,241.03,0.063]
[1738260224072,12.41447265,241.06,241.03,0.063]
[1738260225071,4.1485,241.05,241.03,0.063]
[1738260227596,10.3705,241.07,241.03,0.063]
[1738260227901,14.5186,241.07,241.03,0.063]
[1738260228106,4.1481,241.07,241.03,0.063]
[1738260229620,12.41447265,241.1,241.03,0.063]
[1738260229793,4.1478,241.09,241.03,0.68526568]
[1738260229992,4.1478,241.09,241.04,12.41447265]
[1738260230513,4.1478,241.09,241.03,0.063]
[1738260230895,4.1478,241.09,241.03,0.68523928]
[1738260231331,12.41447265,241.07,241.03,0.063]
[1738260231608,12.41447265,241.04,241.03,0.063]
[1738260231817,16.56307265,241.04,241.03,0.063]
[1738260235124,12.41447265,241.06,241.03,0.063]
[1738260235302,12.41447265,241.08,241.03,0.063]
[1738260235624,12.41447265,241.1,241.03,0.063]
[1738260236027,12.41447265,241.1,241.03,13.09975456]
[1738260236324,0.03,241.11,241.05,12.41447265]
[1738260236709,0.03,241.11,241.03,13.09975456]
[1738260237424,12.41447265,241.1,241.03,0.063]
[1738260238298,12.41447265,241.08,241.03,0.063]
[1738260240101,4.1481,241.07,241.03,0.063]
[1738260241101,12.41447265,241.06,241.03,0.063]
[1738260241960,4.1481,241.07,241.03,0.063]
[1738260242143,0.03,241.11,241.05,12.41447265]
[1738260242347,0.03,241.11,241.09,12.41447265]
[1738260243620,0.03,241.11,241.07,12.41447265]
[1738260244343,0.03,241.11,241.09,12.41447265]
[1738260244635,0.03,241.11,241.1,0.62204161]
[1738260245015,0.03,241.11,241.1,137.62204161]
[1738260245236,0.03,241.11,241.1,137.0]
[1738260245416,0.03,241.11,241.1,141.1476]
[1738260246629,0.03,241.11,241.1,142.6914]
[1738260246836,0.03,241.14,241.13,20.0]
[1738260247042,0.03,241.14,241.13,183.4481076]
[1738260247245,0.03,241.14,241.13,182.82632118]
[1738260247841,0.03,241.14,241.13,169.41447265]
[1738260249622,0.03,241.14,241.13,149.41447265]
[1738260252742,12.44447265,241.14,241.08,137.0]
[1738260253139,12.44447265,241.14,241.04,18.53497265]
[1738260253140,12.41447265,241.12,241.04,18.53497265]
[1738260253446,12.41447265,241.08,241.0,12.41447265]
[1738260253626,12.41447265,241.08,241.0,13.03679188]